fUSD/lending_fUSD_20250417
["ID","MTS","AMOUNT","RATE_DAILY","PERIOD"]
[358219485,1744854662700,-799.91,0.0005315,120]
[358219486,1744854662710,-500.0,0.0005315,120]
[358219487,1744854662719,-500.0,0.0005315,120]
[358219488,1744854662728,-500.0,0.0005315,120]
[358219489,1744854662737,-544.0270566,0.0005315,120]
[358219490,1744854662746,-500.0,0.0005315,120]
[358219491,1744854662755,-500.0,0.0005315,120]
[358219492,1744854662764,-3015.912726,0.0005315,120]
[358219493,1744854662774,-500.0,0.0005315,120]
[358219494,1744854662783,-500.0,0.0005315,120]
[358219495,1744854662792,-500.0,0.0005315,120]
[358219496,1744854662801,-1009.73,0.0005315,120]
[358219497,1744854662811,-500.0,0.0005315,120]
[358219498,1744854662820,-557.60509846,0.0005315,120]
[358219499,1744854662829,-500.0,0.0005315,120]
[358219500,1744854662839,-500.0,0.0005315,120]
[358219501,1744854662848,-500.0,0.0005315,120]
[358219502,1744854662858,-500.0,0.0005315,120]
[358219503,1744854662868,-500.0,0.0005315,120]
[358219504,1744854662878,-532.59018313,0.0005315,120]
[358219505,1744854662888,-606.86146781,0.0005315,120]
[358219506,1744854662897,-551.43228825,0.0005315,120]
[358219507,1744854662907,-526.55,0.0005315,120]
[358219508,1744854662916,-500.0,0.0005315,120]
[358219509,1744854662925,-500.0,0.0005315,120]
[358219510,1744854662935,-500.0,0.0005315,120]
[358219511,1744854662944,-500.0,0.0005315,120]
[358219512,1744854662953,-500.0,0.0005315,120]
[358219513,1744854662962,-500.0,0.0005315,120]
[358219514,1744854662971,-500.0,0.0005315,120]
[358219515,1744854662980,-500.0,0.0005315,120]
[358219516,1744854662990,-552.85464521,0.0005315,120]
[358219517,1744854662999,-500.0,0.0005315,120]
[358219518,1744854663009,-885.35,0.0005315,120]
[358219519,1744854663019,-500.0,0.0005315,120]
[358219520,1744854663029,-500.0,0.0005315,120]
[358219521,1744854663038,-500.0,0.0005315,120]
[358219522,1744854663048,-291.24255604,0.0005315,120]
[358219523,1744854663059,-543.5082234,0.0005315,120]
[358219524,1744854663070,-500.0,0.0005315,120]
[358219525,1744854663082,-722.16,0.0005315,120]
[358219526,1744854663092,-500.0,0.0005315,7]
[358219527,1744854663101,-500.0,0.0005315,120]
[358219528,1744854663111,-730.39,0.0005315,118]
[358219529,1744854663121,-500.0,0.0005315,120]
[358219530,1744854663132,-500.0,0.0005315,120]
[358219531,1744854663142,-500.0,0.0005315,120]
[358219532,1744854663152,-574.70127715,0.0005315,120]
[358219533,1744854663161,-500.0,0.0005315,120]
[358219534,1744854663171,-500.0,0.0005315,120]
[358219535,1744854663180,-958.07,0.0005315,120]
[358219536,1744854663190,-500.0,0.0005315,120]
[358219537,1744854663203,-500.0,0.0005315,120]
[358219538,1744854663213,-1000.0,0.0005315,120]
[358219539,1744854663223,-500.0,0.0005315,120]
[358219540,1744854663233,-1222.41,0.0005315,120]
[358219541,1744854663244,-318.02965948,0.0005315,120]
[358219542,1744854663254,-500.0,0.0005315,120]
[358219543,1744854663264,-592.51,0.0005315,120]
[358219544,1744854663273,-500.0,0.0005315,120]
[358219545,1744854663283,-500.0,0.0005315,120]
[358219546,1744854663293,-500.0,0.0005315,120]
[358219547,1744854663302,-500.0,0.0005315,120]
[358219548,1744854663312,-500.0,0.0005315,120]
[358219549,1744854663323,-500.0,0.0005315,120]
[358219550,1744854663332,-500.0,0.0005315,120]
[358219551,1744854663342,-500.0,0.0005315,120]
[358219552,1744854663353,-500.0,0.0005315,120]
[358219553,1744854663363,-500.0,0.0005315,120]
[358219554,1744854663373,-500.0,0.0005315,120]
[358219555,1744854663387,-500.0,0.0005315,120]
[358219556,1744854663398,-500.0,0.0005315,120]
[358219557,1744854663408,-500.0,0.0005315,120]
[358219558,1744854663417,-500.0,0.0005315,120]
[358219559,1744854663427,-257.69389569,0.0005315,120]
[358219560,1744854663437,-500.0,0.0005315,120]
[358219561,1744854663447,-500.0,0.0005315,120]
[358219562,1744854663457,-500.0,0.0005315,120]
[358219563,1744854663467,-500.0,0.0005315,120]
[358219564,1744854663477,-501.46,0.0005315,120]
[358219565,1744854663487,-500.0,0.0005315,120]
[358219566,1744854663496,-500.0,0.0005315,120]
[358219567,1744854663506,-500.0,0.0005315,120]
[358219568,1744854663516,-500.0,0.0005315,120]
[358219569,1744854663526,-651.32,0.0005315,120]
[358219570,1744854663536,-500.0,0.0005315,120]
[358219571,1744854663545,-1969.24,0.0005315,120]
[358219572,1744854663555,-547.24,0.0005315,120]
[358219573,1744854663565,-500.0,0.0005315,120]
[358219574,1744854663575,-1305.81,0.0005315,35]
[358219575,1744854663585,-500.0,0.0005315,120]
[358219576,1744854663595,-500.0,0.0005315,120]
[358219577,1744854663605,-500.0,0.0005315,120]
[358219578,1744854663615,-1067.01,0.0005315,120]
[358219579,1744854663624,-824.88,0.0005315,120]
[358219580,1744854663635,-579.81608573,0.0005315,120]
[358219581,1744854663644,-500.0,0.0005315,120]
[358219582,1744854663654,-1172.02,0.0005315,120]
[358219583,1744854663663,-500.0,0.0005315,120]
[358219584,1744854663673,-500.0,0.0005315,120]
[358219585,1744854663683,-500.0,0.0005315,120]
[358219586,1744854663692,-1117.56,0.0005315,120]
[358219587,1744854663702,-205.25433847,0.0005315,2]
[358219588,1744854663711,-500.0,0.0005315,120]
[358219589,1744854663721,-500.0,0.0005315,120]
[358219590,1744854663731,-500.0,0.0005315,120]
[358219591,1744854663741,-643.18364876,0.0005315,120]
[358219592,1744854663751,-500.0,0.0005315,120]
[358219593,1744854663760,-500.0,0.0005315,120]
[358219594,1744854663770,-500.0,0.0005315,120]
[358219595,1744854663780,-500.0,0.0005315,120]
[358219596,1744854663790,-500.0,0.0005315,120]
[358219597,1744854663800,-1357.6,0.0005315,120]
[358219598,1744854663810,-500.0,0.0005315,120]
[358219599,1744854663821,-500.0,0.0005315,120]
[358219600,1744854663830,-500.0,0.0005315,120]
[358219601,1744854663981,-615.09172607,0.0005315,120]
[358219602,1744854663990,-500.0,0.0005315,120]
[358219603,1744854664000,-500.0,0.0005315,120]
[358219604,1744854664010,-1824.95,0.0005315,120]
[358219605,1744854664020,-839.32,0.0005315,120]
[358219606,1744854664030,-500.0,0.0005315,120]
[358219607,1744854664039,-1069.69,0.0005315,120]
[358219608,1744854664049,-500.0,0.0005315,120]
[358219609,1744854664059,-500.0,0.0005315,120]
[358219610,1744854664070,-178.10217209,0.00053192,30]
[358219611,1744854664081,-500.0,0.000532,20]
[358219612,1744854664090,-158.442796,0.00053207,120]
[358219613,1744854664101,-1000.0,0.00053207,120]
[358219614,1744854664113,-151.0,0.00053218,120]
[358219615,1744854664123,-178.10217209,0.00053247,30]
[358219616,1744854664134,-151.0,0.00053289,30]
[358219617,1744854664143,-154.728242,0.00053289,120]
[358219618,1744854664156,-151.0,0.00053291,120]
[358219619,1744854664165,-152.638656,0.00053291,90]
[358219620,1744854664175,-261.040008,0.00053291,120]
[358219621,1744854664185,-178.10217209,0.00053302,30]
[358219622,1744854664196,-500.0,0.00053337,20]
[358219623,1744854664206,-178.10217209,0.00053357,30]
[358219624,1744854664216,-178.10217209,0.00053413,30]
[358219625,1744854664226,-500.0,0.00053424,120]
[358219626,1744854664236,-500.0,0.00053424,120]
[358219627,1744854664246,-633.04,0.00053424,120]
[358219628,1744854664256,-741.12,0.00053424,120]
[358219629,1744854664266,-500.0,0.00053424,120]
[358219630,1744854664276,-1165.78,0.00053424,120]
[358219631,1744854664286,-609.86,0.00053424,120]
[358219632,1744854664296,-603.6,0.00053424,30]
[358219633,1744854664305,-500.0,0.00053424,120]
[358219634,1744854664314,-716.81,0.00053424,120]
[358219635,1744854664324,-1153.37,0.00053424,120]
[358219636,1744854664334,-1067.9,0.00053424,8]
[358219637,1744854664343,-834.1,0.00053424,120]
[358219638,1744854664353,-709.13,0.00053424,120]
[358219639,1744854664363,-500.0,0.00053424,120]
[358219640,1744854664373,-507.6,0.00053424,120]
[358219641,1744854664384,-631.81,0.00053424,120]
[358219642,1744854664394,-500.0,0.00053424,120]
[358219643,1744854664404,-500.0,0.00053424,120]
[358219644,1744854664414,-500.0,0.00053424,120]
[358219645,1744854664423,-599.58,0.00053424,120]
[358219646,1744854664434,-500.0,0.00053424,120]
[358219647,1744854664443,-737.91,0.00053424,120]
[358219648,1744854664453,-500.0,0.00053424,120]
[358219649,1744854664462,-587.84,0.00053424,120]
[358219650,1744854664472,-500.0,0.00053424,120]
[358219651,1744854664482,-706.998014,0.00053424,120]
[358219652,1744854664491,-500.0,0.00053424,120]
[358219653,1744854664500,-154.386344,0.00053424,120]
[358219654,1744854664510,-500.0,0.00053424,120]
[358219655,1744854664519,-500.0,0.00053424,120]
[358219656,1744854664530,-572.63503168,0.00053424,120]
[358219657,1744854664539,-153.090261,0.00053424,120]
[358219658,1744854664549,-365.925591,0.00053424,120]
[358219659,1744854664559,-1258.89,0.00053424,120]
[358219660,1744854664569,-500.0,0.00053424,120]
[358219661,1744854664578,-799.91,0.00053424,120]
[358219662,1744854664588,-500.0,0.00053424,120]
[358219663,1744854664597,-500.0,0.00053424,120]
[358219664,1744854664606,-500.0,0.00053424,120]
[358219665,1744854664616,-500.0,0.00053424,120]
[358219666,1744854664625,-500.0,0.00053424,120]
[358219667,1744854664635,-3015.912726,0.00053424,120]
[358219668,1744854664644,-189.09775953,0.00053424,120]
[358219669,1744854664654,-500.0,0.00053424,120]
[358219670,1744854664664,-500.0,0.00053424,120]
[358219671,1744854664674,-1009.73,0.00053424,120]
[358219672,1744854664683,-632.94054152,0.00053424,120]
[358219673,1744854664693,-500.0,0.00053424,120]
[358219674,1744854664702,-500.0,0.00053424,120]
[358219675,1744854664712,-500.0,0.00053424,120]
[358219676,1744854664722,-500.0,0.00053424,120]
[358219677,1744854664731,-500.0,0.00053424,120]
[358219678,1744854664741,-526.55,0.00053424,120]
[358219679,1744854664751,-634.13453707,0.00053424,120]
[358219680,1744854664760,-500.0,0.00053424,120]
[358219681,1744854664770,-500.0,0.00053424,120]
[358219682,1744854664779,-500.0,0.00053424,120]
[358219683,1744854664789,-526.94759929,0.00053424,120]
[358219684,1744854664798,-500.0,0.00053424,120]
[358219685,1744854664808,-500.0,0.00053424,120]
[358219686,1744854664818,-566.20311352,0.00053424,120]
[358219687,1744854664827,-594.06664637,0.00053424,120]
[358219688,1744854664837,-885.35,0.00053424,120]
[358219689,1744854664846,-500.0,0.00053424,120]
[358219690,1744854664856,-500.0,0.00053424,120]
[358219691,1744854664866,-500.0,0.00053424,120]
[358219692,1744854664876,-500.0,0.00053424,120]
[358219693,1744854664885,-722.16,0.00053424,120]
[358219694,1744854664895,-500.0,0.00053424,7]
[358219695,1744854664905,-500.0,0.00053424,120]
[358219696,1744854664914,-730.39,0.00053424,118]
[358219697,1744854664924,-500.0,0.00053424,120]
[358219698,1744854664934,-500.0,0.00053424,120]
[358219699,1744854664943,-156.15001043,0.00053424,120]
[358219700,1744854664953,-500.0,0.00053424,120]
[358219701,1744854664963,-500.0,0.00053424,120]
[358219702,1744854664972,-958.07,0.00053424,120]
[358219703,1744854664983,-200.3730941,0.00053424,120]
[358219704,1744854664993,-500.0,0.00053424,120]
[358219705,1744854665003,-1000.0,0.00053424,120]
[358219706,1744854665012,-500.0,0.00053424,120]
[358219707,1744854665021,-1222.41,0.00053424,120]
[358219708,1744854665031,-500.0,0.00053424,120]
[358219709,1744854665041,-592.51,0.00053424,120]
[358219710,1744854665051,-500.0,0.00053424,120]
[358219711,1744854665061,-490.80483216,0.00053424,120]
[358219712,1744854665074,-500.0,0.00053424,120]
[358219713,1744854665083,-500.0,0.00053424,120]
[358219714,1744854665092,-500.0,0.00053424,120]
[358219715,1744854665103,-500.0,0.00053424,120]
[358219716,1744854665113,-572.22106419,0.00053424,120]
[358219717,1744854665122,-500.0,0.00053424,120]
[358219718,1744854665132,-500.0,0.00053424,120]
[358219719,1744854665142,-500.0,0.00053424,120]
[358219720,1744854665152,-500.0,0.00053424,120]
[358219721,1744854665163,-500.0,0.00053424,120]
[358219722,1744854665172,-500.0,0.00053424,120]
[358219723,1744854665181,-500.0,0.00053424,120]
[358219724,1744854665192,-500.0,0.00053424,120]
[358219725,1744854665201,-500.0,0.00053424,120]
[358219726,1744854665211,-500.0,0.00053424,120]
[358219727,1744854665221,-500.0,0.00053424,120]
[358219728,1744854665233,-500.0,0.00053424,120]
[358219729,1744854665251,-501.46,0.00053424,120]
[358219730,1744854665265,-500.0,0.00053424,120]
[358219731,1744854665278,-500.0,0.00053424,120]
[358219732,1744854665292,-500.0,0.00053424,120]
[358219733,1744854665306,-500.0,0.00053424,120]
[358219734,1744854665321,-651.32,0.00053424,120]
[358219735,1744854665338,-500.0,0.00053424,120]
[358219736,1744854665352,-1969.24,0.00053424,120]
[358219737,1744854665364,-547.24,0.00053424,120]
[358219738,1744854665378,-500.0,0.00053424,120]
[358219739,1744854665392,-1305.81,0.00053424,35]
[358219740,1744854665408,-500.0,0.00053424,120]
[358219741,1744854665423,-500.0,0.00053424,120]
[358219742,1744854665438,-500.0,0.00053424,120]
[358219743,1744854665452,-1067.01,0.00053424,120]
[358219744,1744854665468,-824.88,0.00053424,120]
[358219745,1744854665484,-155.383724,0.00053424,120]
[358219746,1744854665497,-500.0,0.00053424,120]
[358219747,1744854665512,-1172.02,0.00053424,120]
[358219748,1744854665527,-500.0,0.00053424,120]
[358219749,1744854665541,-500.0,0.00053424,120]
[358219750,1744854665554,-500.0,0.00053424,120]
[358219751,1744854665566,-1117.56,0.00053424,120]
[358219752,1744854665578,-500.0,0.00053424,120]
[358219753,1744854665593,-500.0,0.00053424,120]
[358219754,1744854665607,-500.0,0.00053424,120]
[358219755,1744854665618,-500.0,0.00053424,120]
[358219756,1744854665630,-500.0,0.00053424,120]
[358219757,1744854665645,-500.0,0.00053424,120]
[358219758,1744854665659,-500.0,0.00053424,120]
[358219759,1744854665670,-500.0,0.00053424,120]
[358219760,1744854665684,-1357.6,0.00053424,120]
[358219761,1744854665696,-500.0,0.00053424,120]
[358219762,1744854665707,-500.0,0.00053424,120]
[358219763,1744854665720,-500.0,0.00053424,120]
[358219764,1744854665732,-500.0,0.00053424,120]
[358219765,1744854665744,-500.0,0.00053424,120]
[358219766,1744854665756,-1824.95,0.00053424,120]
[358219767,1744854665767,-839.32,0.00053424,120]
[358219768,1744854665780,-500.0,0.00053424,120]
[358219769,1744854665797,-1069.69,0.00053424,120]
[358219770,1744854665810,-500.0,0.00053424,120]
[358219771,1744854665823,-500.0,0.00053424,120]
[358219772,1744854665836,-178.10217209,0.00053468,30]
[358219773,1744854665849,-500.0,0.00053474,20]
[358219774,1744854665861,-323.0,0.00053474,20]
[358219775,1744854665873,-178.10217209,0.00053523,30]
[358219776,1744854665886,-178.10217209,0.00053579,30]
[358219777,1744854665898,-178.10217209,0.00053634,30]
[358219778,1744854665909,-750.0,0.00053688,10]
[358219779,1744854665921,-178.10217209,0.00053689,30]
[358219780,1744854665932,-500.0,0.00053698,120]
[358219781,1744854665943,-500.0,0.00053698,120]
[358219782,1744854665955,-633.04,0.00053698,120]
[358219783,1744854665967,-741.12,0.00053698,120]
[358219784,1744854665978,-500.0,0.00053698,120]
[358219785,1744854665990,-1165.78,0.00053698,120]
[358219786,1744854666002,-609.86,0.00053698,120]
[358219787,1744854666014,-603.6,0.00053698,30]
[358219788,1744854666026,-500.0,0.00053698,120]
[358219789,1744854666037,-716.81,0.00053698,120]
[358219790,1744854666049,-1153.37,0.00053698,120]
[358219791,1744854666059,-1065.97,0.00053698,8]
[358219792,1744854666071,-1067.9,0.00053698,8]
[358219793,1744854666084,-834.1,0.00053698,120]
[358219794,1744854666096,-709.13,0.00053698,120]
[358219795,1744854666107,-500.0,0.00053698,120]
[358219796,1744854666119,-507.6,0.00053698,120]
[358219797,1744854666131,-631.81,0.00053698,120]
[358219798,1744854666143,-500.0,0.00053698,120]
[358219799,1744854666156,-500.0,0.00053698,120]
[358219800,1744854666167,-500.0,0.00053698,120]
[358219801,1744854666178,-599.58,0.00053698,120]
[358219802,1744854666190,-500.0,0.00053698,120]
[358219803,1744854666203,-737.91,0.00053698,120]
[358219804,1744854666215,-500.0,0.00053698,120]
[358219805,1744854666227,-587.84,0.00053698,120]
[358219806,1744854666238,-500.0,0.00053698,120]
[358219807,1744854666249,-706.998014,0.00053698,120]
[358219808,1744854666260,-500.0,0.00053698,120]
[358219809,1744854666271,-154.386344,0.00053698,120]
[358219810,1744854666283,-500.0,0.00053698,120]
[358219811,1744854666296,-192.70984085,0.00053698,120]
[358219812,1744854666307,-153.090261,0.00053698,120]
[358219813,1744854666320,-365.925591,0.00053698,120]
[358219814,1744854666331,-1258.89,0.00053698,120]
[358219815,1744854666343,-500.0,0.00053698,120]
[358219816,1744854666354,-799.91,0.00053698,120]
[358219817,1744854666365,-500.0,0.00053698,120]
[358219818,1744854666377,-447.98189618,0.00053698,120]
[358219819,1744854666389,-500.0,0.00053698,120]
[358219820,1744854666400,-570.21524568,0.00053698,120]
[358219821,1744854666411,-500.0,0.00053698,120]
[358219822,1744854666423,-3015.912726,0.00053698,120]
[358219823,1744854666435,-500.0,0.00053698,120]
[358219824,1744854666446,-500.0,0.00053698,120]
[358219825,1744854666461,-1009.73,0.00053698,120]
[358219826,1744854666472,-500.0,0.00053698,120]
[358219827,1744854666484,-500.0,0.00053698,120]
[358219828,1744854666495,-500.0,0.00053698,120]
[358219829,1744854666506,-500.0,0.00053698,120]
[358219830,1744854666519,-500.0,0.00053698,120]
[358219831,1744854666530,-526.55,0.00053698,120]
[358219832,1744854666542,-500.0,0.00053698,120]
[358219833,1744854666553,-500.0,0.00053698,120]
[358219834,1744854666565,-500.0,0.00053698,120]
[358219835,1744854666576,-500.0,0.00053698,120]
[358219836,1744854666588,-500.0,0.00053698,120]
[358219837,1744854666599,-885.35,0.00053698,120]
[358219838,1744854666611,-500.0,0.00053698,120]
[358219839,1744854666622,-500.0,0.00053698,120]
[358219840,1744854666635,-500.0,0.00053698,120]
[358219841,1744854666646,-722.16,0.00053698,120]
[358219842,1744854666658,-500.0,0.00053698,120]
[358219843,1744854666670,-353.490513,0.00053698,7]
[358219844,1744854666681,-500.0,0.00053698,120]
[358219845,1744854666693,-730.39,0.00053698,118]
[358219846,1744854666705,-589.61361834,0.00053698,120]
[358219847,1744854666717,-500.0,0.00053698,120]
[358219848,1744854666728,-500.0,0.00053698,120]
[358219849,1744854666740,-574.93735469,0.00053698,120]
[358219850,1744854666751,-958.07,0.00053698,120]
[358219851,1744854666763,-500.0,0.00053698,120]
[358219852,1744854666774,-1000.0,0.00053698,120]
[358219853,1744854666786,-500.0,0.00053698,120]
[358219854,1744854666798,-1222.41,0.00053698,120]
[358219855,1744854666809,-500.0,0.00053698,120]
[358219856,1744854667042,-592.51,0.00053698,120]
[358219857,1744854667055,-500.0,0.00053698,120]
[358219858,1744854667065,-500.0,0.00053698,120]
[358219859,1744854667078,-500.0,0.00053698,120]
[358219860,1744854667087,-500.0,0.00053698,120]
[358219861,1744854667097,-500.0,0.00053698,120]
[358219862,1744854667108,-500.0,0.00053698,120]
[358219863,1744854667118,-542.45243414,0.00053698,120]
[358219864,1744854667128,-500.29779767,0.00053698,120]
[358219865,1744854667137,-519.20466087,0.00053698,120]
[358219866,1744854667147,-573.77177043,0.00053698,120]
[358219867,1744854667158,-500.0,0.00053698,120]
[358219868,1744854667169,-500.0,0.00053698,120]
[358219869,1744854667178,-500.0,0.00053698,120]
[358219870,1744854667188,-500.0,0.00053698,120]
[358219871,1744854667198,-500.0,0.00053698,120]
[358219872,1744854667208,-524.26648308,0.00053698,120]
[358219873,1744854667218,-500.0,0.00053698,120]
[358219874,1744854667228,-501.46,0.00053698,120]
[358219875,1744854667237,-531.26315847,0.00053698,120]
[358219876,1744854667247,-500.0,0.00053698,120]
[358219877,1744854667256,-632.93034857,0.00053698,120]
[358219878,1744854667266,-500.0,0.00053698,120]
[358219879,1744854667276,-651.32,0.00053698,120]
[358219880,1744854667286,-500.0,0.00053698,120]
[358219881,1744854667295,-1969.24,0.00053698,120]
[358219882,1744854667305,-547.24,0.00053698,120]
[358219883,1744854667315,-500.0,0.00053698,120]
[358219884,1744854667324,-1305.81,0.00053698,35]
[358219885,1744854667334,-500.0,0.00053698,120]
[358219886,1744854667345,-500.0,0.00053698,120]
[358219887,1744854667356,-500.0,0.00053698,120]
[358219888,1744854667365,-1067.01,0.00053698,120]
[358219889,1744854667375,-824.88,0.00053698,120]
[358219890,1744854667385,-155.383724,0.00053698,120]
[358219891,1744854667395,-522.03920279,0.00053698,120]
[358219892,1744854667405,-1172.02,0.00053698,120]
[358219893,1744854667415,-500.0,0.00053698,120]
[358219894,1744854667425,-500.0,0.00053698,120]
[358219895,1744854667435,-158.61296895,0.00053698,120]
[358219896,1744854667444,-1117.56,0.00053698,120]
[358219897,1744854667453,-500.0,0.00053698,120]
[358219898,1744854667462,-500.0,0.00053698,120]
[358219899,1744854667472,-647.90489677,0.00053698,120]
[358219900,1744854667481,-513.48616928,0.00053698,120]
[358219901,1744854667491,-541.99605121,0.00053698,120]
[358219902,1744854667501,-500.0,0.00053698,120]
[358219903,1744854667512,-500.0,0.00053698,120]
[358219904,1744854667522,-500.0,0.00053698,120]
[358219905,1744854667533,-1357.6,0.00053698,120]
[358219906,1744854667543,-500.0,0.00053698,120]
[358219907,1744854667552,-609.04805753,0.00053698,120]
[358219908,1744854667562,-500.0,0.00053698,120]
[358219909,1744854667572,-500.0,0.00053698,120]
[358219910,1744854667581,-151.831474,0.00053698,120]
[358219911,1744854667591,-500.0,0.00053698,120]
[358219912,1744854667600,-1824.95,0.00053698,120]
[358219913,1744854667610,-839.32,0.00053698,120]
[358219914,1744854667619,-500.0,0.00053698,120]
[358219915,1744854667628,-1069.69,0.00053698,120]
[358219916,1744854667637,-517.94883986,0.00053698,120]
[358219917,1744854667645,-500.0,0.00053698,120]
[358219918,1744854667653,-178.10217209,0.00053744,30]
[358219919,1744854667662,-178.10217209,0.000538,30]
[358219920,1744854667670,-151.0,0.00053808,120]
[358219921,1744854667678,-178.10217209,0.00053855,30]
[358219922,1744854667687,-616.24114498,0.00053898,120]
[358219923,1744854667696,-203.62881746,0.00053898,120]
[358219924,1744854667704,-178.10217209,0.0005391,30]
[358219925,1744854667714,-151.0,0.00053959,120]
[358219926,1744854667723,-178.10217209,0.00053966,30]
[358219927,1744854667732,-1796.78,0.00053971,15]
[358219928,1744854667741,-500.0,0.00053972,120]
[358219929,1744854667751,-500.0,0.00053972,120]
[358219930,1744854667760,-633.04,0.00053972,120]
[358219931,1744854667770,-741.12,0.00053972,120]
[358219932,1744854667779,-500.0,0.00053972,120]
[358219933,1744854667788,-1165.78,0.00053972,120]
[358219934,1744854667798,-609.86,0.00053972,120]
[358219935,1744854667807,-603.6,0.00053972,30]
[358219936,1744854667817,-500.0,0.00053972,120]
[358219937,1744854667826,-716.81,0.00053972,120]
[358219938,1744854667836,-1153.37,0.00053972,120]
[358219939,1744854667845,-1067.9,0.00053972,8]
[358219940,1744854667855,-834.1,0.00053972,120]
[358219941,1744854667864,-709.13,0.00053972,120]
[358219942,1744854667874,-500.0,0.00053972,120]
[358219943,1744854667885,-507.6,0.00053972,120]
[358219944,1744854667895,-631.81,0.00053972,120]
[358219945,1744854667904,-500.0,0.00053972,120]
[358219946,1744854667914,-500.0,0.00053972,120]
[358219947,1744854667924,-500.0,0.00053972,120]
[358219948,1744854667933,-599.58,0.00053972,120]
[358219949,1744854667942,-500.0,0.00053972,120]
[358219950,1744854667951,-737.91,0.00053972,120]
[358219951,1744854667961,-242.81029032,0.00053972,120]
[358219952,1744854667971,-587.84,0.00053972,120]
[358219953,1744854667980,-500.0,0.00053972,120]
[358219954,1744854667989,-706.998014,0.00053972,120]
[358219955,1744854667999,-290.8406825,0.00053972,120]
[358219956,1744854668010,-500.0,0.00053972,120]
[358219957,1744854668021,-365.925591,0.00053972,120]
[358219958,1744854668031,-1258.89,0.00053972,120]
[358219959,1744854668040,-500.0,0.00053972,120]
[358219960,1744854668049,-799.91,0.00053972,120]
[358219961,1744854668058,-500.0,0.00053972,120]
[358219962,1744854668069,-500.0,0.00053972,120]
[358219963,1744854668080,-500.0,0.00053972,120]
[358219964,1744854668089,-3015.912726,0.00053972,120]
[358219965,1744854668100,-500.0,0.00053972,120]
[358219966,1744854668111,-500.0,0.00053972,120]
[358219967,1744854668120,-1009.73,0.00053972,120]
[358219968,1744854668130,-500.0,0.00053972,120]
[358219969,1744854668139,-500.0,0.00053972,120]
[358219970,1744854668149,-500.0,0.00053972,120]
[358219971,1744854668159,-500.0,0.00053972,120]
[358219972,1744854668169,-500.0,0.00053972,120]
[358219973,1744854668177,-526.55,0.00053972,120]
[358219974,1744854668186,-500.0,0.00053972,120]
[358219975,1744854668200,-500.0,0.00053972,120]
[358219976,1744854668209,-500.0,0.00053972,120]
[358219977,1744854668218,-500.0,0.00053972,120]
[358219978,1744854668227,-193.56083679,0.00053972,120]
[358219979,1744854668237,-885.35,0.00053972,120]
[358219980,1744854668246,-500.0,0.00053972,120]
[358219981,1744854668255,-500.0,0.00053972,120]
[358219982,1744854668264,-500.0,0.00053972,120]
[358219983,1744854668273,-722.16,0.00053972,120]
[358219984,1744854668283,-500.0,0.00053972,120]